bitfinex/quotes_ETHUSD_20251111
["timestamp","ask_amount","ask_price","bid_price","bid_amount"]
[1762852024919,4.41717329,3576.7,3576.6,0.001]
[1762852025522,4.82267729,3576.7,3576.6,0.001]
[1762852027656,6.11048169,3576.7,3576.6,0.001]
[1762852027834,7.00849009,3576.7,3576.6,0.001]
[1762852028167,0.002,3577.2,3576.6,0.4624]
[1762852028441,0.002,3577.2,3577.1,3.40836064]
[1762852028813,0.002,3577.2,3576.8,0.1514]
[1762852029140,0.002,3577.2,3577.1,3.25696064]
[1762852030738,0.002,3577.2,3577.1,3.75096064]
[1762852030901,0.002,3577.2,3577.1,3.25696064]
[1762852031325,0.002,3577.2,3577.1,3.92676487]
[1762852031562,0.002,3577.2,3577.1,4.42076487]
[1762852032345,0.662,3577.8,3577.1,4.42076487]
[1762852032346,0.01,3578.9,3577.8,2.79501369]
[1762852032503,0.01,3578.9,3578.8,4.0539447]
[1762852032703,0.01,3578.9,3578.8,5.1813447]
[1762852032913,0.01,3578.9,3578.8,6.85458545]
[1762852033155,0.01,3578.9,3578.8,5.6753447]
[1762852033376,0.01,3578.9,3578.5,1.14311067]
[1762852033377,0.01,3578.9,3578.5,0.1462]
[1762852033869,0.01,3578.9,3578.8,0.4614]
[1762852034021,0.01,3578.9,3578.5,2.94064902]
[1762852034226,0.01,3578.9,3578.4,1.259712]
[1762852034227,0.2074,3578.9,3578.4,1.259712]
[1762852034477,0.2074,3578.9,3578.1,1.259712]
[1762852034655,0.2074,3578.9,3578.1,2.02905977]
[1762852034837,0.2074,3578.9,3578.3,2.79455478]
[1762852035749,0.2074,3578.9,3578.0,4.69476717]
[1762852035750,0.2074,3578.9,3578.0,0.6402]
[1762852035961,0.01,3578.9,3578.0,0.6402]
[1762852036161,0.01,3578.9,3578.5,2.79445938]
[1762852036375,0.01,3578.9,3578.6,2.79438815]
[1762852036727,0.01,3578.9,3578.3,2.2]
[1762852036927,0.01,3578.9,3578.5,2.79445469]
[1762852037177,0.01,3578.9,3578.6,2.79438535]
[1762852037362,0.01,3578.9,3578.8,3.2556327]
[1762852037731,0.01,3578.9,3578.8,3.7496327]
[1762852038829,0.01,3578.9,3578.8,3.2556327]
[1762852039882,0.01,3578.9,3578.8,3.7496327]
[1762852040039,0.01,3578.9,3578.8,5.4148487]
[1762852040239,0.01,3579.9,3579.8,4.05316414]
[1762852040471,0.01,3580.9,3580.8,2.79267202]
[1762852040773,0.01,3580.9,3580.8,3.25407202]
[1762852041270,0.01,3580.9,3580.8,3.74807202]
[1762852041877,0.01,3580.9,3580.8,8.01749312]
[1762852042076,0.01,3580.9,3580.8,9.47502179]
[1762852042280,0.01,3581.9,3581.8,2.79189234]
[1762852042438,0.01,3581.9,3581.8,1.721112]
[1762852042637,0.01,3581.9,3581.8,0.669]
[1762852042837,0.01,3581.9,3581.7,2.93810468]
[1762852043044,0.01,3581.9,3581.8,2.79189234]
[1762852043463,0.01,3581.9,3581.8,3.25329234]
[1762852043676,0.01,3581.9,3581.7,2.93814847]
[1762852043888,0.01,3581.9,3581.8,2.79189234]
[1762852044043,0.01,3581.9,3581.6,3.46102508]
[1762852044386,0.01,3581.9,3581.5,0.1462]
[1762852044565,0.01,3581.9,3581.3,0.669]
[1762852044566,0.2074,3581.9,3581.3,2.79227187]
[1762852044888,0.2074,3581.9,3581.1,0.8142]
[1762852045340,0.2074,3581.9,3581.4,2.7921713]
[1762852045539,0.6691,3581.9,3581.1,0.1462]
[1762852045743,0.6691,3581.9,3581.1,0.668]
[1762852045988,0.3460859,3581.8,3581.0,2.79244568]
[1762852046148,0.8077859,3581.8,3580.7,0.1226]
[1762852046349,2.79202883,3581.7,3580.7,0.1226]
[1762852046579,2.79205926,3581.6,3580.7,0.1226]
[1762852046907,0.0280924,3581.5,3581.0,2.2]
[1762852047189,3.46933807,3581.1,3581.0,2.2]
[1762852047478,3.46933807,3581.1,3579.9,0.1226]
[1762852047479,1.3449,3581.1,3579.9,0.1226]
[1762852047684,1.3449,3581.1,3579.5,3.91727792]
[1762852047685,0.4617,3581.0,3579.5,0.668]
[1762852047893,2.79296276,3580.5,3579.5,1.1862057]
[1762852048091,2.97325841,3580.9,3580.1,2.79315886]
[1762852048265,0.4617,3580.8,3579.5,1.1862057]
[1762852048460,2.7927618,3580.7,3579.8,2.79344834]
[1762852048655,2.79291191,3580.5,3579.5,1.1862057]
[1762852048869,2.79305827,3580.4,3579.4,0.1226]
[1762852049110,0.4617,3580.4,3579.5,2.79368626]
[1762852049309,0.4617,3580.4,3579.6,2.79359821]
[1762852049460,0.4617,3580.4,3579.4,0.1226]
[1762852049662,0.4617,3580.4,3579.8,2.79345188]
[1762852050082,0.4617,3580.4,3579.4,0.1226]
[1762852050286,0.4617,3580.4,3579.4,0.3286312]
[1762852050562,0.4617,3581.0,3580.3,0.5793]
[1762852050772,0.667,3581.0,3580.3,0.5793]
[1762852051059,0.667,3581.0,3580.3,3.37233752]
[1762852051275,0.667,3581.0,3580.6,2.7927928]
[1762852051473,0.4617,3581.7,3580.3,0.5793]
[1762852051660,0.667,3581.6,3580.5,2.79290601]
[1762852051861,0.667,3581.6,3580.4,0.4556]
[1762852052197,1.1287,3581.6,3580.9,2.79252746]
[1762852052395,1.1287,3581.6,3580.4,0.4556]
[1762852052396,1.54151343,3581.6,3581.1,2.79236897]
[1762852052695,1.1287,3581.6,3580.9,2.79252384]
[1762852052865,0.667,3581.6,3581.2,2.79233693]
[1762852053064,0.667,3581.6,3580.8,2.79263492]
[1762852053288,0.667,3581.6,3580.6,2.79282801]
[1762852053492,0.667,3581.6,3581.1,2.79239112]
[1762852053797,0.667,3581.6,3581.0,2.79248255]
[1762852054173,0.667,3581.6,3581.2,2.79231426]
[1762852054783,1.1287,3581.6,3580.8,2.79266937]
[1762852054981,1.1287,3581.6,3581.0,2.79250419]
[1762852055173,1.1287,3581.6,3581.0,2.7924525]
[1762852055395,0.0280924,3581.7,3581.1,0.1462]
[1762852055698,0.2075,3581.9,3580.9,2.79253258]
[1762852055699,0.4617,3581.6,3580.9,2.79253258]
[1762852055877,0.4617,3581.6,3581.0,2.79249373]
[1762852056073,0.4617,3581.6,3580.6,2.79282801]
[1762852056300,0.4609,3581.6,3581.1,2.79243059]
[1762852056595,0.4609,3581.6,3580.5,0.666]
[1762852056596,0.80693146,3581.6,3581.0,2.79250345]
[1762852056797,0.80693146,3581.6,3580.5,3.45883343]
[1762852056960,0.34603146,3581.6,3580.3,0.1226]
[1762852057302,2.79210945,3581.6,3580.4,1.1216]
[1762852057499,2.79210945,3581.6,3580.9,2.79258529]
[1762852058408,2.79210945,3581.6,3580.4,1.1216]
[1762852058409,0.4617,3581.7,3581.1,2.79238044]
[1762852058708,3.2536914,3581.7,3581.0,2.79249132]
[1762852058875,3.88098517,3581.7,3580.8,2.79265939]
[1762852059075,1.08899377,3581.7,3581.1,2.79242152]
[1762852059280,1.08899377,3581.7,3580.9,2.79259368]
[1762852059494,0.4637,3581.7,3581.0,2.79250671]
[1762852059690,0.002,3581.7,3580.5,0.4556]
[1762852059897,2.7921262,3581.5,3580.5,3.24849367]
[1762852060199,2.79220448,3581.4,3580.7,2.79273769]
[1762852060569,0.4617,3581.4,3580.6,2.79278449]
[1762852060778,2.79228324,3581.3,3580.6,2.79278449]
[1762852060994,0.4617,3581.4,3580.6,2.79278449]
[1762852061211,0.8538856,3581.4,3580.6,2.79278449]
[1762852061415,2.79228213,3581.3,3580.6,2.79278449]
[1762852061770,2.79228213,3581.3,3580.5,2.79288146]
[1762852061970,2.79228213,3581.3,3580.6,2.79281726]
[1762852062510,0.6769,3580.7,3580.0,0.001]
[1762852062707,0.2772,3580.6,3580.2,2.79307727]
[1762852062898,0.2772,3580.6,3580.0,0.24654]
[1762852062899,0.7389,3580.6,3580.0,0.001]
[1762852063299,0.7389,3580.6,3580.1,2.79316395]
[1762852063477,0.7389,3580.6,3580.2,2.79313334]
[1762852063678,0.665,3580.7,3580.1,0.1234]
[1762852063880,0.665,3580.7,3580.4,2.79294895]
[1762852064708,0.665,3580.7,3580.2,2.79313971]
[1762852064914,0.665,3580.7,3580.4,2.79293891]
[1762852065078,0.665,3580.7,3580.1,0.1234]
[1762852065483,3.25380712,3581.6,3580.7,2.79275002]
[1762852065680,3.25380712,3581.6,3580.6,0.4567]
[1762852065681,1.26977404,3581.5,3581.1,2.79237551]
[1762852066233,1.26977404,3581.5,3580.6,0.4567]
[1762852066234,0.665,3581.5,3581.2,2.79231152]
[1762852066378,0.665,3581.5,3581.1,2.79240908]
[1762852066579,0.665,3581.5,3580.5,0.4556]
[1762852066809,0.665,3581.5,3581.0,2.79246451]
[1762852067054,0.665,3581.5,3580.5,0.4556]
[1762852067253,0.4617,3581.4,3580.6,0.32485825]
[1762852067420,0.4617,3581.4,3580.1,3.381912]
[1762852067421,0.4617,3581.4,3581.0,2.79244757]
[1762852067622,0.4617,3581.4,3580.4,0.4556]
[1762852067926,0.4617,3581.4,3580.1,2.1222]
[1762852068123,2.79230609,3581.3,3580.1,2.1222]
[1762852068329,2.79230609,3581.3,3580.6,2.7928078]
[1762852068536,0.4617,3581.2,3580.5,2.79290601]
[1762852068743,3.25374992,3581.6,3580.2,3.80684407]
[1762852068948,3.45718539,3581.5,3580.2,1.01374576]
[1762852069149,1.1267,3581.5,3580.2,3.80686954]
[1762852069445,0.4617,3581.4,3580.8,2.79261638]
[1762852069750,0.4617,3581.4,3580.8,2.79264802]
[1762852069922,0.4617,3581.4,3580.8,2.79263756]
[1762852070327,0.4617,3581.4,3580.9,2.7925766]
[1762852070520,0.4617,3581.4,3580.8,2.79264524]
[1762852070711,0.4617,3581.4,3580.9,2.79259354]
[1762852070917,3.96441715,3581.4,3580.4,1.9988]
[1762852071243,0.4617,3581.3,3580.4,1.9988]
[1762852071442,0.4617,3581.3,3580.6,2.79275372]
[1762852071750,0.4617,3581.3,3580.4,1.9988]
[1762852072046,0.664,3581.2,3580.7,2.79272585]
[1762852072352,0.664,3581.2,3580.8,2.79266728]
[1762852072547,1.1257,3581.2,3580.8,2.79266728]
[1762852072750,0.4794,3580.9,3580.7,2.79267428]
[1762852072970,0.664,3581.2,3580.8,2.79262022]
[1762852073135,0.4617,3581.1,3580.4,1.9988]
[1762852073338,0.4617,3581.1,3580.6,2.79278174]
[1762852073547,0.4617,3581.1,3580.7,2.7927404]
[1762852073752,0.4617,3581.1,3580.6,2.79279558]
[1762852074021,0.4617,3581.1,3580.7,2.79274414]
[1762852074288,0.4617,3581.1,3580.8,2.79266193]
[1762852074619,0.4617,3581.1,3580.7,2.79273751]
[1762852075154,0.4794,3580.8,3580.7,2.79273751]
[1762852076129,0.4794,3580.8,3580.7,2.79275002]
[1762852076327,1.1424,3580.8,3580.7,2.79275002]
[1762852076531,0.4794,3580.8,3580.7,2.79275002]
[1762852076765,0.1935,3580.9,3580.8,2.79267202]
[1762852076973,0.002,3581.7,3580.8,1.2496222]
[1762852077131,0.002,3581.7,3580.5,2.6618]
[1762852077132,0.002,3581.7,3581.6,2.79204824]
[1762852077330,0.002,3581.7,3581.5,2.79207819]
[1762852077528,0.002,3581.7,3581.6,2.79204824]
[1762852077771,0.002,3581.7,3581.5,2.79210345]
[1762852078069,0.9608,3581.6,3581.1,1.9988]
[1762852078273,0.4623,3581.2,3581.1,4.79123218]
[1762852078867,0.4623,3581.2,3581.1,1.9988]
[1762852079338,0.9569,3581.2,3581.1,1.9988]
[1762852080071,0.4623,3581.2,3581.1,1.9988]
[1762852080243,0.4615,3581.2,3581.1,4.79123807]
[1762852080442,0.4615,3581.2,3581.1,1.9988]
[1762852080974,0.665,3581.4,3581.2,2.7923601]
[1762852081342,0.4642,3581.3,3581.1,1.9988]
[1762852081545,0.2651,3581.2,3581.1,1.9988]
[1762852081939,0.002,3581.6,3581.5,2.7921262]
[1762852082141,0.002,3581.6,3581.4,2.79220135]
[1762852082339,0.002,3581.6,3581.5,2.7921262]
[1762852082671,0.002,3581.6,3581.2,2.7923601]
[1762852082672,0.4662,3581.6,3581.2,2.7923601]
[1762852082878,0.002,3581.6,3581.5,2.7921262]
[1762852084574,0.4662,3581.6,3581.1,0.147]
[1762852084772,0.4662,3581.6,3581.4,2.79219921]
[1762852085080,0.4662,3581.6,3581.4,2.79219213]
[1762852085376,0.2721,3581.5,3581.4,2.79220416]
[1762852085751,0.002,3581.6,3581.5,2.7921262]
[1762852086556,0.002,3581.6,3581.5,3.2833262]
[1762852086750,0.002,3581.6,3581.5,3.89087924]
[1762852087147,0.002,3581.6,3581.5,4.36937924]
[1762852088170,0.002,3581.6,3581.5,5.03337924]
[1762852088686,0.002,3581.6,3581.5,5.35130107]
[1762852088982,0.002,3581.6,3581.5,5.03337924]
[1762852089884,0.002,3581.6,3581.5,4.36937924]
[1762852090182,0.002,3581.6,3581.5,7.23437924]
[1762852090483,0.002,3581.6,3581.5,7.97710367]
[1762852090686,0.002,3581.6,3581.5,7.23437924]
[1762852090863,0.002,3581.6,3581.5,7.97710367]
[1762852091277,0.002,3581.6,3581.5,7.23437924]
[1762852091886,0.002,3581.6,3581.5,6.09087924]
[1762852092086,0.002,3581.6,3581.5,6.1483262]
[1762852092787,0.002,3581.6,3581.5,4.9921262]
[1762852093085,0.9608,3581.6,3581.5,2.2]
[1762852094051,0.4662,3581.6,3581.5,4.9921262]
[1762852094311,0.002,3581.6,3581.5,4.9921262]
[1762852094596,0.9608,3581.6,3581.5,2.2]
[1762852094946,0.4662,3581.6,3581.5,2.2]
[1762852095184,0.9608,3581.6,3581.5,2.2]
[1762852095582,0.9608,3581.6,3580.9,2.79254461]
[1762852095773,0.4642,3581.0,3580.9,2.79259404]
[1762852095974,0.4642,3581.0,3580.8,0.001]
[1762852096292,0.2737,3580.9,3580.8,2.79365848]
[1762852096493,0.4641,3580.9,3580.8,0.001]
[1762852096694,0.9587,3580.9,3580.8,0.001]
[1762852097203,0.4642,3580.9,3580.8,0.001]
[1762852097418,0.4642,3580.9,3580.8,2.79367202]
[1762852097707,0.685,3581.1,3581.0,2.79251605]
[1762852097901,0.6546,3581.1,3580.8,2.79364833]
[1762852098117,0.002,3581.6,3581.0,0.4912]
[1762852098301,0.002,3581.6,3581.5,2.7921262]
[1762852098478,0.002,3581.6,3581.5,3.2833262]
[1762852098682,0.002,3581.6,3581.2,0.665]
[1762852099004,0.002,3581.6,3580.8,1.260712]
[1762852099005,0.4966,3581.6,3581.4,2.79218209]
[1762852099210,0.4642,3581.5,3581.3,2.79226823]
[1762852099408,0.4642,3581.5,3581.2,2.7922987]
[1762852099605,0.002,3581.6,3580.8,0.001]
[1762852099807,0.002,3581.6,3580.9,0.14097244]
[1762852099985,0.002,3581.6,3581.4,2.79220069]
[1762852100307,0.002,3581.6,3581.5,2.7921262]
[1762852100841,0.4662,3581.6,3581.5,2.7921262]
[1762852101618,0.002,3581.6,3581.5,3.2833262]
[1762852101832,0.002,3581.6,3581.5,2.7921262]
[1762852102019,0.9608,3581.6,3581.3,2.79228019]
[1762852102223,0.9608,3581.6,3580.9,0.667]
[1762852102224,0.4966,3581.6,3581.4,2.79219869]
[1762852102409,0.4966,3581.6,3581.5,2.7921262]
[1762852102920,0.9608,3581.6,3581.5,2.7921262]
[1762852103319,0.4662,3581.6,3581.5,2.7921262]
[1762852103519,0.002,3581.6,3581.5,2.7921262]
[1762852103909,0.002,3581.6,3581.5,3.8417669]
[1762852104110,0.0012,3581.6,3581.5,4.67677206]
[1762852104315,0.0012,3581.6,3581.5,4.3202669]
[1762852105752,0.0012,3581.6,3581.5,4.34818816]
[1762852106044,0.0012,3581.6,3581.5,4.3333669]
[1762852106406,0.0012,3581.6,3581.5,5.07609133]
[1762852106646,0.0012,3581.6,3581.5,4.68844481]
[1762852107053,0.0012,3581.6,3581.5,4.71636607]
[1762852107212,0.0012,3581.6,3581.5,4.68110314]
[1762852107544,0.01,3581.9,3581.5,4.68110314]
[1762852107545,1e-08,3581.9,3581.8,3.25319234]
[1762852107750,1e-08,3581.9,3581.8,11.62352788]
[1762852108348,1e-08,3581.9,3581.8,12.36584859]
[1762852108645,1e-08,3581.9,3581.8,11.62352788]
[1762852109714,1e-08,3581.9,3581.8,12.61277252]
[1762852109953,1e-08,3581.9,3581.8,11.87401837]
[1762852110245,1e-08,3581.9,3581.8,10.95552788]
[1762852110449,1e-08,3581.9,3581.8,11.62252788]
[1762852110946,1e-08,3581.9,3581.8,11.96509746]
[1762852111151,1e-08,3581.9,3581.8,11.62252788]
[1762852111321,1e-08,3581.9,3581.8,12.02803188]
[1762852111524,1e-08,3581.9,3581.8,11.96509746]
[1762852111748,1e-08,3581.9,3581.8,11.62252788]
[1762852112253,1e-08,3581.9,3581.8,12.36452853]
[1762852113049,0.01,3582.9,3582.8,2.79111309]
[1762852113349,0.01,3582.9,3582.8,3.25241309]
[1762852113554,1e-08,3582.9,3582.8,4.41315728]
[1762852113738,1e-08,3582.9,3582.8,5.618108]
[1762852114139,1e-08,3582.9,3582.8,4.87684615]
[1762852115351,1e-08,3582.9,3582.8,4.58994615]
[1762852115560,1e-08,3582.9,3582.8,2.79111309]
[1762852115855,1e-08,3582.9,3582.8,3.45711309]
[1762852116053,1e-08,3582.9,3582.8,2.79111309]
[1762852116259,1.11150001,3582.9,3582.7,2.79118679]
[1762852116457,0.3321,3582.7,3582.6,2.79126891]
[1762852117258,0.7886,3582.7,3582.6,2.79126891]
[1762852117457,0.7886,3582.7,3582.5,2.79131635]
[1762852117754,0.4565,3582.6,3582.5,2.79131635]
[1762852117931,0.4719,3582.6,3582.5,2.79131635]
[1762852118134,0.9284,3582.6,3582.4,2.79141532]
[1762852118522,0.7886,3582.5,3582.4,2.79141532]
[1762852119341,0.7886,3582.5,3581.8,2.14451101]
[1762852119532,0.4705,3582.3,3581.8,0.666]
[1762852120058,0.927,3582.3,3581.7,1.259712]
[1762852120219,0.3334,3581.9,3581.8,2.79189234]
[1762852120652,0.4565,3582.3,3581.6,0.665]
[1762852121155,0.4565,3582.3,3581.7,2.79190304]
[1762852121358,0.6379,3581.8,3581.7,2.79190304]
[1762852121564,0.6379,3581.8,3581.6,2.79204629]
[1762852121763,1.0944,3581.8,3581.6,2.79204629]
[1762852122068,0.8295,3581.7,3581.6,2.79204629]
[1762852122269,0.8295,3581.7,3581.5,2.7921141]
[1762852122432,0.4565,3581.6,3581.5,2.7921141]
[1762852122644,0.9284,3581.6,3581.5,2.7921141]
[1762852123930,0.9284,3581.6,3581.1,0.001]
[1762852123931,0.9284,3581.6,3581.4,2.79213866]
[1762852124129,0.4565,3581.5,3581.2,2.7923601]
[1762852124447,0.373,3581.3,3581.2,2.7923601]
[1762852125775,0.166,3582.0,3581.2,3.2536601]
[1762852126070,0.63960001,3582.9,3582.5,2.7912818]
[1762852126275,0.63960001,3582.9,3582.1,2.79165852]
[1762852126479,0.63960001,3582.9,3582.7,2.79113248]
[1762852127005,0.4719,3582.8,3582.7,2.79113248]
[1762852127477,0.9284,3582.8,3581.8,0.665]
[1762852127657,3.13058882,3582.6,3581.9,2.7917607]
[1762852127848,1.76032157,3582.5,3582.1,2.79165466]
[1762852128069,1.1225,3582.5,3582.0,2.79173461]
[1762852128370,1.1225,3582.5,3581.4,2.79216986]
[1762852128371,0.4565,3582.4,3581.4,2.79216986]
[1762852128886,0.4565,3582.4,3581.2,0.74126185]
[1762852129243,0.4565,3582.4,3581.8,2.79186982]
[1762852129470,3.24792524,3582.4,3581.2,1.259712]
[1762852129683,3.91835919,3582.4,3581.8,2.79187165]
[1762852129974,0.4565,3582.3,3581.8,2.79187165]
[1762852130167,0.655,3581.9,3581.8,2.79187165]
[1762852130362,0.655,3581.9,3581.7,2.79195354]
[1762852130562,0.655,3581.9,3581.2,4.42744068]
[1762852130775,0.655,3581.9,3581.8,2.79189234]
[1762852131961,0.655,3581.9,3581.4,2.79215279]
[1762852132161,0.4565,3581.8,3581.7,2.79195319]
[1762852132794,0.9284,3581.8,3581.7,2.79195319]
[1762852133698,0.9284,3581.8,3581.5,2.79210671]
[1762852133866,0.1831,3581.9,3581.4,0.001]
[1762852133867,0.3393,3581.6,3581.4,0.001]
[1762852134067,1.1215,3581.7,3581.4,0.001]
[1762852134068,0.4706,3581.5,3581.4,2.79315503]
[1762852135366,0.4706,3581.5,3581.4,0.001]
[1762852135672,0.4706,3581.5,3581.4,2.79320416]
[1762852136378,0.928,3581.5,3581.4,2.79320416]
[1762852136781,0.4706,3581.5,3581.4,2.79320416]
[1762852138396,1.1346,3581.5,3581.4,2.79320416]
[1762852138604,0.4706,3581.5,3581.4,2.79320416]
[1762852138804,1.1346,3581.5,3581.4,2.79320416]
[1762852140012,1.1346,3581.5,3581.4,0.001]
[1762852140585,1.1346,3581.5,3581.4,2.79320416]
[1762852140784,1.592,3581.5,3581.4,2.79320416]
[1762852141513,1.592,3581.5,3581.4,0.001]
[1762852142047,4.82252006,3581.5,3581.4,0.001]
[1762852142320,2.03039386,3581.5,3581.4,0.001]
[1762852143886,1.592,3581.5,3581.4,0.001]
[1762852145322,2.9749266,3581.9,3581.4,0.001]
[1762852145323,0.1831,3581.9,3581.4,0.001]
[1762852145519,0.662,3581.8,3581.4,0.4608]
[1762852145853,1.1194,3581.8,3581.5,2.79207178]
[1762852146002,0.4922,3581.6,3581.5,2.79207178]
[1762852146339,0.4922,3581.6,3581.4,0.001]
[1762852146523,0.7757,3581.5,3581.4,0.001]
[1762852146926,0.9803,3581.5,3581.4,0.001]
[1762852147433,0.1831,3581.9,3581.5,2.7921262]
[1762852147632,0.662,3581.8,3581.4,2.79317075]
[1762852148000,1.1194,3581.8,3581.4,2.79317075]
[1762852148206,0.405504,3582.7,3582.5,298.2053]
[1762852148409,6.07042286,3582.6,3582.5,298.2053]
[1762852148603,6.38872286,3582.6,3582.5,290.1733]
[1762852151314,5.72672286,3582.6,3582.5,290.1733]
[1762852151509,6.38872286,3582.6,3582.5,290.1733]
[1762852152452,6.38792286,3582.6,3582.5,290.1733]
[1762852152633,5.98141886,3582.6,3582.5,290.1733]
[1762852158448,3.76956891,3582.6,3582.5,290.1733]
[1762852158650,0.18510001,3582.9,3582.5,290.1733]
[1762852158841,3.45111692,3582.8,3582.5,290.1733]
[1762852159039,0.18510001,3582.9,3582.5,290.1733]
[1762852159240,0.661,3582.8,3582.5,290.1733]
[1762852159427,0.1748,3582.6,3582.5,290.1733]
[1762852160054,2.96606891,3582.6,3582.5,290.1733]
[1762852160255,3.96723955,3582.6,3582.5,290.1733]
[1762852160434,4.37274355,3582.6,3582.5,290.1733]
[1762852162264,5.63245555,3582.6,3582.5,290.1733]
[1762852168847,5.63245555,3582.6,3582.5,290.1743]
[1762852169260,6.29245555,3582.6,3582.5,290.1743]
[1762852169639,6.29245555,3582.6,3582.5,290.16585]
[1762852170876,9.67302592,3582.6,3582.5,290.16585]
[1762852171082,9.67302592,3582.6,3582.5,274.75859781]
[1762852171380,9.01302592,3582.6,3582.5,187.14640542]
[1762852171562,9.67202592,3582.6,3582.5,187.14640542]
[1762852173654,3.4739794,3583.1,3583.0,271.96914469]
[1762852173880,7.0809794,3583.1,3583.0,271.96914469]
[1762852174977,9.80254977,3583.1,3583.0,271.96914469]
[1762852175140,6.35454977,3583.1,3583.0,271.96914469]
[1762852175340,3.6329794,3583.1,3583.0,271.96914469]
[1762852175563,4.8926914,3583.1,3583.0,271.96914469]
[1762852175780,0.8421,3583.1,3583.0,271.96914469]
[1762852176005,3.6329794,3583.1,3583.0,271.96914469]
[1762852176210,2.506516,3583.1,3583.0,271.96914469]
[1762852176412,2.101012,3583.1,3583.0,271.96914469]
[1762852176707,3.38057037,3583.3,3583.0,271.96914469]
[1762852176913,3.4498794,3583.1,3583.0,271.96914469]
[1762852177278,0.659,3583.1,3583.0,272.44364469]
[1762852177670,0.659,3583.1,3583.0,272.89474469]
[1762852178123,0.02,3583.4,3583.0,272.89474469]
[1762852178323,0.02,3583.4,3583.0,271.96914469]
[1762852178324,0.659,3583.1,3583.0,271.96914469]
[1762852178677,0.659,3583.1,3583.0,272.44364469]
[1762852178872,0.659,3583.1,3583.0,272.89474469]
[1762852179570,0.02,3583.4,3583.0,272.89474469]
[1762852179772,0.02,3583.4,3583.3,3.26522363]
[1762852179971,0.02,3583.4,3583.3,0.4745]
[1762852180187,0.02,3583.4,3583.3,3.71632363]
[1762852180576,0.003,3584.7,3583.8,2.79033428]
[1762852180776,0.661,3584.1,3583.8,4.27401045]
[1762852182695,0.661,3584.1,3583.3,0.661]
[1762852182696,0.661,3584.1,3582.8,2.79109992]
[1762852182896,0.661,3584.1,3583.8,0.4745]
[1762852183119,0.003,3584.7,3583.8,0.4745]
[1762852183468,0.66,3584.1,3583.8,3.71593428]
[1762852183578,0.003,3584.7,3583.9,2.79022912]
[1762852183781,0.003,3584.7,3584.6,0.6681]
[1762852184087,0.003,3584.7,3584.6,1.1192]
[1762852185483,0.003,3584.7,3584.6,3.90891154]
[1762852185808,0.09711738,3585.9,3585.0,0.4745]
[1762852185983,0.09711738,3585.9,3585.1,0.4511]
[1762852186397,0.09711738,3585.9,3585.8,0.4745]
[1762852187304,0.76011738,3585.9,3585.2,0.4511]
[1762852187623,0.76011738,3585.9,3584.9,0.4511]
[1762852187814,0.35487598,3585.8,3584.9,0.4511]
[1762852188013,3.14366405,3585.8,3584.9,0.4511]
[1762852188214,0.35487598,3585.8,3584.9,0.4511]
[1762852188414,2.7888577,3585.7,3584.9,0.4511]
[1762852188617,0.35487598,3585.8,3584.9,0.4511]
[1762852188796,0.76011738,3585.9,3584.9,0.4511]
[1762852189518,2.78877795,3585.8,3584.9,0.4511]
[1762852189732,3.54882863,3585.9,3584.9,0.4511]
[1762852190019,0.76011738,3585.9,3584.9,0.4511]
[1762852190321,2.78895948,3585.6,3584.9,0.4511]
[1762852190525,0.27889595,3585.5,3584.9,0.4511]
[1762852190817,0.76011738,3585.9,3584.9,0.4511]
[1762852191527,0.09711738,3585.9,3585.8,0.4745]
[1762852191695,0.75911738,3585.9,3585.8,0.4745]
[1762852192021,0.00110918,3586.3,3586.0,271.21002731]
[1762852192506,0.662,3586.2,3586.0,271.21002731]
[1762852193220,3.13398728,3586.1,3586.0,271.21002731]
[1762852194585,0.34544263,3586.1,3586.0,271.21002731]
[1762852194827,3.45051049,3586.2,3586.0,271.21002731]
[1762852195227,2.78854465,3586.1,3586.0,271.21002731]
[1762852195728,0.662,3586.2,3586.0,271.21002731]
[1762852196141,2.78854465,3586.1,3586.0,271.21002731]
[1762852196360,0.662,3586.2,3586.0,271.21002731]
[1762852196575,2.78854465,3586.1,3586.0,271.21002731]
[1762852199138,3.19404865,3586.1,3586.0,271.21002731]
[1762852200277,3.19324865,3586.1,3586.0,271.21002731]
[1762852201107,4.95296065,3586.1,3586.0,271.21002731]
[1762852201868,2.78963372,3584.7,3583.0,2.7478377]
[1762852202182,0.662,3584.6,3584.3,0.1998]
[1762852202381,4.37195995,3585.3,3584.3,0.1998]
[1762852202382,0.662,3584.5,3584.3,0.1998]
[1762852202572,0.405504,3585.3,3584.3,0.1998]
[1762852202573,0.662,3584.4,3584.3,0.1998]
[1762852202909,0.405504,3585.3,3584.3,0.1998]
[1762852202910,0.405504,3585.3,3584.4,0.4839]
[1762852203368,0.405504,3585.1,3584.4,0.4839]
[1762852203811,0.405504,3584.9,3584.1,0.01]
[1762852204006,0.662,3585.2,3584.2,3.25907866]
[1762852204174,0.405504,3585.1,3584.2,0.4691]
[1762852204372,0.405504,3585.1,3584.3,0.4691]
[1762852204569,0.405504,3585.1,3584.1,0.2098]
[1762852204773,0.662,3585.2,3584.1,0.2098]
[1762852204774,0.405504,3584.9,3584.1,0.2098]
[1762852204968,0.0280924,3584.8,3584.1,0.2098]
[1762852205312,0.662,3584.7,3584.1,0.2098]
[1762852205487,0.4335964,3584.6,3584.3,0.001]
[1762852205686,0.405504,3584.6,3584.3,0.001]
[1762852206984,0.662,3584.7,3584.3,0.001]
[1762852207387,0.405504,3584.6,3584.3,0.001]
[1762852208294,0.405504,3584.4,3584.3,0.001]
[1762852208708,6.53717595,3584.4,3584.3,0.001]
[1762852208912,6.03717595,3584.4,3584.3,0.001]
[1762852209889,1.665216,3584.4,3584.3,0.001]
[1762852210488,1.6933084,3584.4,3584.3,0.001]
[1762852211588,1.665216,3584.4,3584.3,0.001]